fUST/lending_fUST_20251206
["ID","MTS","AMOUNT","RATE_DAILY","PERIOD"]
[396474743,1764979844955,-500.0,0.00016438,2]
[396474744,1764979844966,-551.9,0.00016438,2]
[396474745,1764979844975,-833.68,0.00016438,2]
[396474746,1764979844986,-500.0,0.00016438,2]
[396474747,1764979844996,-500.0,0.00016438,2]
[396474748,1764979845006,-500.0,0.00016438,2]
[396474749,1764979845015,-500.0,0.00016438,2]
[396474750,1764979845025,-1739.56,0.00016438,2]
[396474751,1764979845035,-500.0,0.00016438,2]
[396474752,1764979845044,-500.0,0.00016438,2]
[396474753,1764979845053,-500.0,0.00016438,2]
[396474754,1764979845062,-661.32,0.00016438,2]
[396474755,1764979845071,-500.0,0.00016438,2]
[396474756,1764979845080,-500.0,0.00016438,2]
[396474757,1764979845089,-500.0,0.00016438,2]
[396474758,1764979845098,-576.17,0.00016438,2]
[396474759,1764979845108,-500.0,0.00016438,2]
[396474760,1764979845117,-500.0,0.00016438,2]
[396474761,1764979845126,-500.0,0.00016438,2]
[396474762,1764979845136,-500.0,0.00016438,2]
[396474763,1764979845145,-500.0,0.00016438,2]
[396474764,1764979845155,-500.0,0.00016438,2]
[396474765,1764979845164,-500.0,0.00016438,2]
[396474766,1764979845175,-574.99,0.00016438,2]
[396474767,1764979845184,-500.0,0.00016438,2]
[396474768,1764979845194,-500.0,0.00016438,2]
[396474769,1764979845204,-500.0,0.00016438,2]
[396474770,1764979845214,-151.0,0.00016438,2]
[396474771,1764979845224,-500.0,0.00016438,2]
[396474772,1764979845234,-500.0,0.00016438,2]
[396474773,1764979845244,-151.0,0.00016438,2]
[396474774,1764979845254,-151.0,0.00016438,2]
[396474775,1764979845264,-500.0,0.00016438,2]
[396474776,1764979845273,-151.0,0.00016438,2]
[396474777,1764979845283,-151.0,0.00016438,2]
[396474778,1764979845292,-500.0,0.00016438,2]
[396474779,1764979845302,-151.0,0.00016438,2]
[396474780,1764979845312,-151.0,0.00016438,2]
[396474781,1764979845322,-151.0,0.00016438,2]
[396474782,1764979845332,-151.0,0.00016438,2]
[396474783,1764979845342,-522.79028963,0.00016438,2]
[396474784,1764979845503,-151.0,0.00016438,2]
[396474785,1764979845512,-220.389552,0.00016438,2]
[396474786,1764979845522,-500.0,0.00016438,2]
[396474787,1764979845531,-500.0,0.00016438,2]
[396474788,1764979845540,-500.0,0.00016438,2]
[396474789,1764979845550,-629.44,0.00016438,2]
[396474790,1764979845560,-384.07352367,0.00016438,2]
[396474791,1764979845569,-999.47,0.00016438,2]
[396474792,1764979845579,-500.0,0.00016438,2]
[396474793,1764979845588,-500.0,0.00016438,2]
[396474794,1764979845597,-500.0,0.00016438,2]
[396474795,1764979845607,-500.0,0.00016438,2]
[396474796,1764979845616,-500.0,0.00016438,2]
[396474797,1764979845628,-500.0,0.00016438,2]
[396474798,1764979845638,-500.0,0.00016438,2]
[396474799,1764979845647,-500.0,0.00016438,2]
[396474800,1764979845656,-500.0,0.00016438,2]
[396474801,1764979845667,-500.0,0.00016438,2]
[396474802,1764979845677,-500.0,0.00016438,2]
[396474803,1764979845687,-500.0,0.00016438,2]
[396474804,1764979845696,-925.01,0.00016438,2]
[396474805,1764979845707,-531.62254465,0.00016438,2]
[396474806,1764979845716,-500.0,0.00016438,2]
[396474807,1764979845725,-500.0,0.00016438,2]
[396474808,1764979845735,-575.96,0.00016438,2]
[396474809,1764979845745,-500.0,0.00016438,2]
[396474810,1764979845754,-500.0,0.00016438,2]
[396474811,1764979845764,-500.0,0.00016438,2]
[396474812,1764979845773,-501.52,0.00016438,2]
[396474813,1764979845783,-500.0,0.00016438,2]
[396474814,1764979845792,-265.526214,0.00016438,2]
[396474815,1764979845801,-265.526214,0.00016438,2]
[396474816,1764979845810,-265.526214,0.00016438,2]
[396474817,1764979845820,-265.526214,0.00016438,2]
[396474818,1764979845829,-265.526214,0.00016438,2]
[396474819,1764979845839,-265.526214,0.00016438,2]
[396474820,1764979845851,-500.0,0.00016438,2]
[396474821,1764979845861,-1080.79,0.00016438,2]
[396474822,1764979845872,-265.526214,0.00016438,2]
[396474823,1764979845883,-265.526214,0.00016438,2]
[396474824,1764979845894,-500.0,0.00016438,2]
[396474825,1764979845904,-265.526214,0.00016438,2]
[396474826,1764979845914,-265.526214,0.00016438,2]
[396474827,1764979845925,-265.526214,0.00016438,2]
[396474828,1764979845934,-265.526221,0.00016438,2]
[396474829,1764979845944,-2071.01,0.00016438,2]
[396474830,1764979845954,-500.0,0.00016438,2]
[396474831,1764979845964,-786.32,0.00016438,2]
[396474832,1764979845974,-500.0,0.00016438,2]
[396474833,1764979845984,-500.0,0.00016438,2]
[396474834,1764979845994,-500.0,0.00016438,2]
[396474835,1764979846004,-500.0,0.00016438,2]
[396474836,1764979846014,-500.0,0.00016438,2]
[396474837,1764979846024,-500.0,0.00016438,2]
[396474838,1764979846033,-500.0,0.00016438,2]
[396474839,1764979846042,-500.0,0.00016438,2]
[396474840,1764979846052,-500.0,0.00016438,2]
[396474841,1764979846061,-500.0,0.00016438,2]
[396474842,1764979846071,-500.0,0.00016438,2]
[396474843,1764979846080,-500.0,0.00016438,2]
[396474844,1764979846090,-500.0,0.00016438,2]
[396474845,1764979846099,-500.0,0.00016438,2]
[396474846,1764979846108,-500.0,0.00016438,2]
[396474847,1764979846118,-553.45002815,0.00016438,2]
[396474848,1764979846128,-503.36633951,0.00016438,2]
[396474849,1764979846138,-500.0,0.00016438,2]
[396474850,1764979846148,-500.0,0.00016438,2]
[396474851,1764979846158,-367.31554091,0.00016438,2]
[396474852,1764979846168,-500.0,0.00016438,2]
[396474853,1764979846178,-500.0,0.00016438,2]
[396474854,1764979846188,-500.0,0.00016438,2]
[396474855,1764979846199,-558.04351117,0.00016438,2]
[396474856,1764979846210,-500.0,0.00016438,2]
[396474857,1764979846219,-842.31,0.00016438,2]
[396474858,1764979846230,-500.0,0.00016438,2]
[396474859,1764979846240,-500.0,0.00016438,2]
[396474860,1764979846250,-500.0,0.00016438,2]
[396474861,1764979846260,-500.0,0.00016438,2]
[396474862,1764979846269,-500.0,0.00016438,2]
[396474863,1764979846278,-1121.01,0.00016438,2]
[396474864,1764979846288,-500.0,0.00016438,2]
[396474865,1764979846297,-500.0,0.00016438,2]
[396474866,1764979846306,-500.0,0.00016438,2]
[396474867,1764979846316,-161.69130776,0.00016438,2]
[396474868,1764979846326,-2292.89,0.00016438,2]
[396474869,1764979846335,-500.0,0.00016438,2]
[396474870,1764979846345,-500.0,0.00016438,2]
[396474871,1764979846356,-500.0,0.00016438,2]
[396474872,1764979846366,-562.46,0.00016438,2]
[396474873,1764979846378,-500.0,0.00016438,2]
[396474874,1764979846389,-510.47,0.00016438,2]
[396474875,1764979846399,-500.0,0.00016438,2]
[396474876,1764979846410,-500.0,0.00016438,2]
[396474877,1764979846420,-500.0,0.00016438,2]
[396474878,1764979846430,-1372.78,0.00016438,2]
[396474879,1764979846439,-500.0,0.00016438,2]
[396474880,1764979846449,-500.0,0.00016438,2]
[396474881,1764979846458,-500.45,0.00016438,2]
[396474882,1764979846468,-500.0,0.00016438,2]
[396474883,1764979846477,-500.0,0.00016438,2]
[396474884,1764979846488,-500.0,0.00016438,2]
[396474885,1764979846502,-500.0,0.00016438,2]
[396474886,1764979846511,-1326.12,0.00016438,2]
[396474887,1764979846523,-500.0,0.00016438,2]
[396474888,1764979846535,-570.01,0.00016438,2]
[396474889,1764979846545,-601.21908734,0.00016438,2]
[396474890,1764979846555,-500.0,0.00016438,2]
[396474891,1764979846564,-500.0,0.00016438,2]
[396474892,1764979846574,-500.0,0.00016438,2]
[396474893,1764979846585,-500.0,0.00016438,2]
[396474894,1764979846597,-667.86,0.00016438,2]
[396474895,1764979846607,-500.0,0.00016438,2]
[396474896,1764979846617,-1070.09,0.00016438,2]
[396474897,1764979846631,-500.0,0.00016438,2]
[396474898,1764979846641,-279.19228571,0.00016438,2]
[396474899,1764979846651,-500.0,0.00016438,2]
[396474900,1764979846662,-1123.62,0.00016438,2]
[396474901,1764979846673,-187.23,0.00016438,2]
[396474902,1764979846682,-208.86143942,0.00016438,2]
[396474903,1764979846692,-500.0,0.00016438,2]
[396474904,1764979846702,-500.0,0.00016438,2]
[396474905,1764979846712,-500.0,0.00016438,2]
[396474906,1764979846722,-500.0,0.00016438,2]
[396474907,1764979846733,-500.0,0.00016438,2]
[396474908,1764979846742,-500.0,0.00016438,2]
[396474909,1764979846752,-500.0,0.00016438,2]
[396474910,1764979846761,-500.0,0.00016438,2]
[396474911,1764979846771,-540.75,0.00016438,2]
[396474912,1764979846781,-500.0,0.00016438,2]
[396474913,1764979846792,-500.0,0.00016438,2]
[396474914,1764979846803,-500.0,0.00016438,2]
[396474915,1764979846814,-500.0,0.00016438,2]
[396474916,1764979846824,-500.0,0.00016438,2]
[396474917,1764979846833,-708.57,0.00016438,2]
[396474918,1764979846842,-500.0,0.00016438,2]
[396474919,1764979846852,-500.0,0.00016438,2]
[396474920,1764979846862,-500.0,0.00016438,2]
[396474921,1764979846872,-456.75640903,0.00016438,2]
[396474922,1764979846881,-500.0,0.00016438,2]
[396474923,1764979846891,-2431.37,0.00016438,2]
[396474924,1764979846900,-230.70793609,0.00016438,2]
[396474925,1764979846910,-500.0,0.00016438,2]
[396474926,1764979846919,-500.0,0.00016438,2]
[396474927,1764979846929,-500.0,0.00016438,2]
[396474928,1764979846938,-500.0,0.00016438,2]
[396474929,1764979846948,-500.0,0.00016438,2]
[396474930,1764979846957,-500.0,0.00016438,2]
[396474931,1764979846966,-763.11,0.00016438,2]
[396474932,1764979846976,-2189.71,0.00016438,2]
[396474933,1764979846985,-500.0,0.00016438,2]
[396474934,1764979846994,-500.0,0.00016438,2]
[396474935,1764979847004,-7292.65,0.00016438,2]
[396474936,1764979847013,-500.0,0.00016438,2]
[396474937,1764979847023,-500.0,0.00016438,2]
[396474938,1764979847032,-500.0,0.00016438,2]
[396474939,1764979847041,-626.87,0.00016438,2]
[396474940,1764979847050,-958.07,0.00016438,2]
[396474941,1764979847060,-500.0,0.00016438,2]
[396474942,1764979847069,-758.56,0.00016438,2]
[396474943,1764979847078,-1026.33,0.00016438,2]
[396474944,1764979847088,-322.8,0.00016438,2]
[396474945,1764979847098,-500.0,0.00016438,2]
[396474946,1764979847107,-500.0,0.00016438,2]
[396474947,1764979847117,-1082.1,0.00016438,2]
[396474948,1764979847127,-500.0,0.00016438,2]
[396474949,1764979847136,-500.0,0.00016438,2]
[396474950,1764979847145,-866.0,0.00016438,2]
[396474951,1764979847154,-975.67,0.00016438,2]
[396474952,1764979847163,-624.32,0.00016438,2]
[396474953,1764979847173,-500.0,0.00016438,2]
[396474954,1764979847183,-500.0,0.00016438,2]
[396474955,1764979847192,-700.8,0.00016438,2]
[396474956,1764979847202,-1892.35,0.00016438,2]
[396474957,1764979847212,-500.0,0.00016438,2]
[396474958,1764979847221,-916.06,0.00016438,2]
[396474959,1764979847231,-2270.65,0.00016438,2]
[396474960,1764979847240,-1677.3,0.00016438,2]
[396474961,1764979847250,-500.0,0.00016438,2]
[396474962,1764979847260,-360.58821994,0.00016438,2]
[396474963,1764979847270,-500.0,0.00016438,2]
[396474964,1764979847279,-500.0,0.00016438,2]
[396474965,1764979847288,-500.0,0.00016438,2]
[396474966,1764979847298,-500.0,0.00016438,2]
[396474967,1764979847307,-500.0,0.00016438,2]
[396474968,1764979847317,-500.0,0.00016438,2]
[396474969,1764979847326,-500.0,0.00016438,2]
[396474970,1764979847336,-509.09734326,0.00016438,2]
[396474971,1764979847346,-500.0,0.00016438,2]
[396474972,1764979847355,-500.0,0.00016438,2]
[396474973,1764979847365,-703.89,0.00016438,2]
[396474974,1764979847376,-500.0,0.00016438,2]
[396474975,1764979847386,-500.0,0.00016438,2]
[396474976,1764979847396,-500.0,0.00016438,2]
[396474977,1764979847406,-500.0,0.00016438,2]
[396474978,1764979847415,-500.0,0.00016438,2]
[396474979,1764979847427,-1193.72,0.00016438,2]
[396474980,1764979847437,-1174.47,0.00016438,2]
[396474981,1764979847446,-500.0,0.00016438,2]
[396474982,1764979847457,-500.0,0.00016438,2]
[396474983,1764979847467,-834.49,0.00016438,2]
[396474984,1764979847478,-500.0,0.00016438,2]
[396474985,1764979847489,-500.0,0.00016438,2]
[396474986,1764979847500,-500.0,0.00016438,2]
[396474987,1764979847510,-568.93,0.00016438,2]
[396474988,1764979847519,-743.83,0.00016438,2]
[396474989,1764979847529,-500.0,0.00016438,2]
[396474990,1764979847539,-500.0,0.00016438,2]
[396474991,1764979847548,-2408.31,0.00016438,2]
[396474992,1764979847560,-500.0,0.00016438,2]
[396474993,1764979847571,-500.0,0.00016438,2]
[396474994,1764979847581,-3083.38,0.00016438,2]
[396474995,1764979847591,-1580.71,0.00016438,2]
[396474996,1764979847603,-500.0,0.00016438,2]
[396474997,1764979847614,-500.0,0.00016438,2]
[396474998,1764979847624,-1653.87,0.00016438,2]
[396474999,1764979847637,-500.0,0.00016438,2]
[396475000,1764979847648,-500.0,0.00016438,2]
[396475001,1764979847657,-500.0,0.00016438,2]
[396475002,1764979847667,-3817.0,0.00016438,2]
[396475003,1764979847676,-500.0,0.00016438,2]
[396475004,1764979847686,-500.0,0.00016438,2]
[396475005,1764979847696,-500.0,0.00016438,2]
[396475006,1764979847707,-500.0,0.00016438,2]
[396475007,1764979847716,-500.0,0.00016438,2]
[396475008,1764979847727,-500.0,0.00016438,2]
[396475009,1764979847737,-500.0,0.00016438,2]
[396475010,1764979847748,-500.0,0.00016438,2]
[396475011,1764979848028,-500.0,0.00016438,2]
[396475012,1764979848038,-500.0,0.00016438,2]
[396475013,1764979848048,-500.0,0.00016438,2]
[396475014,1764979848057,-500.0,0.00016438,2]
[396475015,1764979848066,-500.0,0.00016438,2]
[396475016,1764979848076,-500.0,0.00016438,2]
[396475017,1764979848086,-1531.63,0.00016438,2]
[396475018,1764979848095,-500.0,0.00016438,2]
[396475019,1764979848105,-626.95,0.00016438,2]
[396475020,1764979848114,-500.0,0.00016438,2]
[396475021,1764979848124,-1057.26,0.00016438,2]
[396475022,1764979848132,-612.49,0.00016438,2]
[396475023,1764979848142,-500.0,0.00016438,2]
[396475024,1764979848152,-531.76,0.00016438,2]
[396475025,1764979848161,-539.69,0.00016438,2]
[396475026,1764979848171,-642.4,0.00016438,2]
[396475027,1764979848181,-500.0,0.00016438,2]
[396475028,1764979848190,-677.46,0.00016438,2]
[396475029,1764979848199,-500.0,0.00016438,2]
[396475030,1764979848209,-500.0,0.00016438,2]
[396475031,1764979848219,-500.0,0.00016438,2]
[396475032,1764979848229,-500.0,0.00016438,2]
[396475033,1764979848238,-500.0,0.00016438,2]
[396475034,1764979848249,-2400.47,0.00016438,2]
[396475035,1764979848258,-355.20333838,0.00016438,2]
[396475036,1764979848268,-500.0,0.00016438,2]
[396475037,1764979848278,-689.83,0.00016438,2]
[396475038,1764979848288,-500.0,0.00016438,2]
[396475039,1764979848298,-5648.15,0.00016438,2]
[396475040,1764979848308,-500.0,0.00016438,2]
[396475041,1764979848318,-6847.52,0.00016438,2]
[396475042,1764979848328,-567.92,0.00016438,2]
[396475043,1764979848337,-743.95,0.00016438,2]
[396475044,1764979848346,-2345.06,0.00016438,2]
[396475045,1764979848356,-500.0,0.00016438,2]
[396475046,1764979848365,-500.0,0.00016438,2]
[396475047,1764979848375,-500.0,0.00016438,2]
[396475048,1764979848384,-500.0,0.00016438,2]
[396475049,1764979848393,-4257.61,0.00016438,2]
[396475050,1764979848403,-500.0,0.00016438,2]
[396475051,1764979848412,-1109.63,0.00016438,2]
[396475052,1764979848422,-500.0,0.00016438,2]
[396475053,1764979848431,-613.62,0.00016438,2]
[396475054,1764979848440,-500.0,0.00016438,2]
[396475055,1764979848450,-938.14,0.00016438,2]
[396475056,1764979848459,-728.4,0.00016438,2]
[396475057,1764979848468,-500.0,0.00016438,2]
[396475058,1764979848478,-500.0,0.00016438,2]
[396475059,1764979848487,-500.0,0.00016438,2]
[396475060,1764979848496,-500.0,0.00016438,2]
[396475061,1764979848505,-1003.99,0.00016438,2]
[396475062,1764979848514,-500.0,0.00016438,2]
[396475063,1764979848524,-1489.19,0.00016438,2]
[396475064,1764979848534,-564.45,0.00016438,2]
[396475065,1764979848543,-653.63,0.00016438,2]
[396475066,1764979848553,-500.0,0.00016438,2]
[396475067,1764979848563,-500.0,0.00016438,2]
[396475068,1764979848572,-500.0,0.00016438,2]
[396475069,1764979848581,-500.0,0.00016438,2]
[396475070,1764979848591,-567.256244,0.00016438,2]
[396475071,1764979848600,-522.14,0.00016438,2]
[396475072,1764979848609,-500.0,0.00016438,2]
[396475073,1764979848619,-5862.07,0.00016438,2]
[396475074,1764979848631,-500.0,0.00016438,2]
[396475075,1764979848641,-1714.07,0.00016438,2]
[396475076,1764979848650,-1709.26,0.00016438,2]
[396475077,1764979848660,-500.0,0.00016438,2]
[396475078,1764979848670,-3818.32,0.00016438,2]
[396475079,1764979848679,-500.0,0.00016438,2]
[396475080,1764979848689,-500.0,0.00016438,2]
[396475081,1764979848698,-3712.0,0.00016438,2]
[396475082,1764979848708,-934.71,0.00016438,2]
[396475083,1764979848718,-653.41,0.00016438,2]
[396475084,1764979848729,-1597.54,0.00016438,2]
[396475085,1764979848738,-511.73,0.00016438,2]
[396475086,1764979848748,-857.34,0.00016438,2]
[396475087,1764979848757,-500.0,0.00016438,2]
[396475088,1764979848767,-500.0,0.00016438,2]
[396475089,1764979848777,-535.78,0.00016438,2]
[396475090,1764979848786,-973.38,0.00016438,2]
[396475091,1764979848796,-500.0,0.00016438,2]
[396475092,1764979848806,-727.95,0.00016438,2]
[396475093,1764979848815,-500.0,0.00016438,2]
[396475094,1764979848825,-547.86,0.00016438,2]
[396475095,1764979848834,-500.0,0.00016438,2]
[396475096,1764979848844,-500.0,0.00016438,2]
[396475097,1764979848853,-1026.22,0.00016438,2]
[396475098,1764979848864,-500.0,0.00016438,2]
[396475099,1764979848873,-500.0,0.00016438,2]
[396475100,1764979848884,-2159.91,0.00016438,2]
[396475101,1764979848894,-1121.22,0.00016438,2]
[396475102,1764979848904,-693.42,0.00016438,2]
[396475103,1764979848913,-500.0,0.00016438,2]
[396475104,1764979848924,-868.02,0.00016438,2]
[396475105,1764979848934,-834.72,0.00016438,2]
[396475106,1764979848944,-4993.88,0.00016438,2]
[396475107,1764979848954,-500.0,0.00016438,2]
[396475108,1764979848963,-500.0,0.00016438,2]
[396475109,1764979848972,-12126.32,0.00016438,2]
[396475110,1764979848982,-5503.39,0.00016438,2]
[396475111,1764979848993,-500.0,0.00016438,2]
[396475112,1764979849002,-500.0,0.00016438,2]
[396475113,1764979849012,-500.0,0.00016438,2]
[396475114,1764979849021,-602.64,0.00016438,2]
[396475115,1764979849032,-500.0,0.00016438,2]
[396475116,1764979849043,-500.0,0.00016438,2]
[396475117,1764979849052,-547.9,0.00016438,2]
[396475118,1764979849063,-500.0,0.00016438,2]
[396475119,1764979849073,-898.99,0.00016438,2]
[396475120,1764979849082,-3070.28,0.00016438,2]
[396475121,1764979849093,-500.0,0.00016438,2]
[396475122,1764979849102,-759.01,0.00016438,2]
[396475123,1764979849112,-757.38,0.00016438,2]
[396475124,1764979849122,-531.69,0.00016438,2]
[396475125,1764979849135,-500.0,0.00016438,2]
[396475126,1764979849144,-744.53,0.00016438,2]
[396475127,1764979849154,-500.0,0.00016438,2]
[396475128,1764979849164,-500.0,0.00016438,2]
[396475129,1764979849174,-1048.51,0.00016438,2]
[396475130,1764979849183,-651.28,0.00016438,2]
[396475131,1764979849193,-500.0,0.00016438,2]
[396475132,1764979849204,-2296.67,0.00016438,2]
[396475133,1764979849214,-1923.17,0.00016438,2]
[396475134,1764979849224,-500.0,0.00016438,2]
[396475135,1764979849234,-151.0,0.00016438,2]
[396475136,1764979849243,-151.0,0.00016438,2]
[396475137,1764979849254,-151.0,0.00016438,2]
[396475138,1764979849265,-151.0,0.00016438,2]
[396475139,1764979849275,-151.0,0.00016438,2]
[396475140,1764979849284,-151.0,0.00016438,2]
[396475141,1764979849296,-151.0,0.00016438,2]
[396475142,1764979849306,-151.551977,0.00016438,2]
[396475143,1764979849316,-163.47763028,0.00016438,2]
[396475144,1764979849326,-1680.9371724,0.00016438,2]
[396475145,1764979849336,-2427.19828866,0.00016438,2]
[396475146,1764979849351,-3000.0,0.00016438,2]
[396475147,1764979849361,-560.0,0.00016558,2]
[396475148,1764979849371,-3000.0,0.0001656,2]
[396475149,1764979849380,-3500.0,0.0001656,2]
[396475150,1764979849390,-1473.09,0.00016565,2]
[396475151,1764979849399,-720.0,0.00016565,2]
[396475152,1764979849409,-5747.0,0.00016607,2]
[396475153,1764979849418,-500.0,0.0001661,2]
[396475154,1764979849428,-2487.15318209,0.00016625,2]
[396475155,1764979849438,-500.0,0.00016628,2]
[396475156,1764979849448,-519.8648858,0.00016679,2]
[396475157,1764979849458,-600.0,0.00016712,7]
[396475158,1764979849468,-500.0,0.00016712,2]
[396475159,1764979849477,-353.49011575,0.00016712,2]
[396475160,1764979849488,-500.0,0.00016712,2]
[396475161,1764979849498,-500.0,0.00016712,2]
[396475162,1764979849507,-500.0,0.00016712,2]
[396475163,1764979849516,-500.0,0.00016712,2]
[396475164,1764979849526,-500.0,0.00016712,2]
[396475165,1764979849536,-500.0,0.00016712,2]
[396475166,1764979849546,-500.0,0.00016712,2]
[396475167,1764979849555,-500.0,0.00016712,2]
[396475168,1764979849565,-500.0,0.00016712,2]
[396475169,1764979849574,-500.0,0.00016712,2]
[396475170,1764979849585,-500.0,0.00016712,2]
[396475171,1764979849594,-500.0,0.00016712,2]
[396475172,1764979849604,-500.0,0.00016712,2]
[396475173,1764979849613,-500.0,0.00016712,2]
[396475174,1764979849622,-509.78,0.00016712,2]
[396475175,1764979849638,-629.47,0.00016712,2]
[396475176,1764979849647,-512.70647012,0.00016712,2]
[396475177,1764979849657,-500.0,0.00016712,2]
[396475178,1764979849667,-500.0,0.00016712,2]
[396475179,1764979849676,-500.0,0.00016712,2]
[396475180,1764979849687,-551.95,0.00016712,2]
[396475181,1764979849696,-500.0,0.00016712,2]
[396475182,1764979849710,-500.0,0.00016712,2]
[396475183,1764979849719,-500.0,0.00016712,2]
[396475184,1764979849728,-500.0,0.00016712,2]
[396475185,1764979849738,-315.73067877,0.00016712,2]
[396475186,1764979849748,-500.0,0.00016712,2]
[396475187,1764979849757,-500.0,0.00016712,2]
[396475188,1764979849767,-500.0,0.00016712,2]
[396475189,1764979849776,-500.0,0.00016712,2]
[396475190,1764979849786,-500.0,0.00016712,2]
[396475191,1764979849795,-374.01884624,0.00016712,2]
[396475192,1764979849804,-500.0,0.00016712,2]
[396475193,1764979849814,-500.0,0.00016712,2]
[396475194,1764979849824,-500.0,0.00016712,2]
[396475195,1764979849834,-500.0,0.00016712,2]
[396475196,1764979849843,-500.0,0.00016712,2]
[396475197,1764979849852,-500.0,0.00016712,2]
[396475198,1764979849861,-500.0,0.00016712,2]
[396475199,1764979849869,-395.50445843,0.00016712,2]
[396475200,1764979849878,-500.0,0.00016712,2]
[396475201,1764979849887,-500.0,0.00016712,2]
[396475202,1764979849895,-589.04094515,0.00016712,2]
[396475203,1764979849903,-181.60754179,0.00016712,2]
[396475204,1764979849911,-797.74,0.00016712,2]
[396475205,1764979849919,-500.0,0.00016712,2]
[396475206,1764979849928,-628.12,0.00016712,2]
[396475207,1764979849936,-1009.17,0.00016712,2]
[396475208,1764979849944,-500.0,0.00016712,2]
[396475209,1764979849953,-500.0,0.00016712,2]
[396475210,1764979849961,-500.0,0.00016712,2]
[396475211,1764979849971,-500.0,0.00016712,2]
[396475212,1764979849986,-500.0,0.00016712,2]
[396475213,1764979849996,-500.0,0.00016712,2]
[396475214,1764979850006,-540.23,0.00016712,2]
[396475215,1764979850015,-500.0,0.00016712,2]
[396475216,1764979850024,-500.0,0.00016712,2]
[396475217,1764979850034,-500.0,0.00016712,2]
[396475218,1764979850043,-500.0,0.00016712,2]
[396475219,1764979850053,-500.0,0.00016712,2]
[396475220,1764979850062,-500.0,0.00016712,2]
[396475221,1764979850071,-500.0,0.00016712,2]
[396475222,1764979850081,-570.97,0.00016712,2]
[396475223,1764979850090,-248.46740687,0.00016712,2]
[396475224,1764979850101,-500.0,0.00016712,2]
[396475225,1764979850111,-500.0,0.00016712,2]
[396475226,1764979850124,-500.0,0.00016712,2]
[396475227,1764979850136,-500.0,0.00016712,2]
[396475228,1764979850147,-637.33,0.00016712,2]
[396475229,1764979850158,-500.0,0.00016712,2]
[396475230,1764979850168,-551.9,0.00016712,2]
[396475231,1764979850178,-833.68,0.00016712,2]
[396475232,1764979850188,-607.02692364,0.00016712,2]
[396475233,1764979850197,-500.0,0.00016712,2]
[396475234,1764979850206,-500.0,0.00016712,2]
[396475235,1764979850218,-500.0,0.00016712,2]
[396475236,1764979850228,-1739.56,0.00016712,2]
[396475237,1764979850238,-500.0,0.00016712,2]
[396475238,1764979850248,-500.0,0.00016712,2]
[396475239,1764979850259,-500.0,0.00016712,2]
[396475240,1764979850269,-661.32,0.00016712,2]
[396475241,1764979850279,-500.0,0.00016712,2]
[396475242,1764979850288,-500.0,0.00016712,2]